Cogmind - Beta 9.5 @@@ ROGUE MODE // 2020.04.06 @ 00:47:31 // Winter2019/RPGLIKE Player: Torako Result: Self-destructed Performance ------------- Evolutions (1) 500 Regions Visited (6) 1200 Robots Destroyed (61) 305 Value Destroyed (1331) 1331 Prototype IDs (26) 520 Alien Tech Used (0) 0 Bonus (367) 367 TOTAL SCORE: 4223 Bonus ------- Follower Combat Kills 67 Aligned with FarCom 300 Cogmind --------- Core Integrity 900/1000 Matter 300/300 Energy 256/260 System Corruption 0% Temperature Cool (4) Movement Flying (32) Location -8/Mines Parts ------- > --- POWER (1) -------- Light Nuclear Core > --- PROPULSION (2) --- Improved Flight Unit Improved Flight Unit > --- UTILITY (3) ------ Light Armor Plating Medium Armor Plating Shield Generator > --- WEAPON (1) ------- Mining Claw > --- INVENTORY (3) ---- Deploy-a-Sentry Deploy-a-Sentry Deploy-a-Sentry Peak State ------------ > --- POWER ------------ Light Nuclear Core > --- PROPULSION ------- Improved Flight Unit Improved Flight Unit > --- UTILITY ---------- Light Armor Plating Medium Armor Plating Shield Generator > --- WEAPON ----------- Mining Claw > --- INVENTORY -------- Deploy-a-Sentry Deploy-a-Sentry Deploy-a-Sentry [Rating: 17] Favorites ----------- Power Ion Engine Engine Ion Engine Power Core Light Nuclear Core Propulsion Wheel Wheel Wheel Flight Unit Improved Flight Unit Utility Signal Interpreter Device Shield Generator Processor Signal Interpreter Protection Medium Armor Plating Weapon Mining Claw Energy Gun EM Pulse Gun Energy Cannon Advanced Beam Cannon Ballistic Gun Improved Assault Rifle Launcher Grenade Launcher Slashing Weapon Mining Claw Build | -11 -10 -10 -9 -9 -9 -8 ------- Run | Scr Mat Min Mat Min Exi Min Slots Evolved 3 | . . . 3 . . . Power . | . . . . . . . Propulsion 1 | . . . 1 . . . Utility 2 | . . . 2 . . . Weapon . | . . . . . . . Parts Attached 32 | 3 11 3 15 . . . Power 5 | 1 3 1 . . . . Engine 4 | 1 3 . . . . . Core 1 | . . 1 . . . . Reactor . | . . . . . . . Propulsion 7 | 1 2 . 4 . . . Treads . | . . . . . . . Leg . | . . . . . . . Wheel 5 | 1 2 . 2 . . . Hover . | . . . . . . . Flight 2 | . . . 2 . . . Utility 8 | . 3 . 5 . . . Device 1 | . . . 1 . . . Storage . | . . . . . . . Processor 3 | . 3 . . . . . Hackware . | . . . . . . . Protection 4 | . . . 4 . . . Artifact . | . . . . . . . Weapon 12 | 1 3 2 6 . . . Energy Gun 6 | 1 3 . 2 . . . Energy Cannon 1 | . . . 1 . . . Ballistic Gun 1 | . . . 1 . . . Ballistic Cannon . | . . . . . . . Launcher 1 | . . 1 . . . . Special Weapon . | . . . . . . . Impact Weapon . | . . . . . . . Slashing Weapon 3 | . . 1 2 . . . Piercing Weapon . | . . . . . . . Special Melee Weapon . | . . . . . . . Unidentified Prototypes 4 | . . . 4 . . . Parts Lost 2 | . 2 . . . . . Power . | . . . . . . . Propulsion . | . . . . . . . Utility 1 | . 1 . . . . . Weapon 1 | . 1 . . . . . Highest Loss Streak 1 | . 1 . . . . . Average Slot Usage (%) 90 | . 95 87 86 100 100 . Engine 15 | . 24 21 . . . . Core 5 | . . 3 14 14 14 . Wheel 18 | . 24 25 8 . . . Flight 6 | . . . 17 28 28 . Device 4 | . . . 13 14 14 . Processor 16 | . 22 25 1 . . . Protection 5 | . . . 15 28 28 . Energy Gun 7 | . 24 . . . . . Launcher 1 | . . 4 . . . . Slashing Weapon 7 | . . 8 13 14 14 . Naked Turns 1 | . 1 . . . . . Heaviest Build 24 | 5 7 8 24 19 19 19 Greatest Support 37 | 10 10 10 37 22 22 22 Greatest Overweight (x) 5 | . 1 . 5 . . . Average Overweight (x) . | . . . . . . . Largest Inventory Capacity 3 | 2 2 2 3 3 3 3 Average Capacity 2 | 2 2 2 2 3 3 3 Most Carried 3 | . 2 2 2 2 3 3 Average Carried 1 | . 1 1 1 2 2 3 Final Capacity 3 | 2 2 2 3 3 3 3 Final Carried 3 | . 2 2 2 2 3 3 Class Distribution -------------------- 78% | Mutant 21% | Sprinter Dominant Class ---------------- Mutant | -10/Materials Mutant | -10/Mines Sprinter | -9/Materials Sprinter | -9/Mines Sprinter | -9/Exiles Sprinter | -8/Mines Resources | -11 -10 -10 -9 -9 -9 -8 ----------- Run | Scr Mat Min Mat Min Exi Min Matter Collected 740 | 230 110 250 150 . . . Remotely . | . . . . . . . Salvage Created 1576 | . 604 254 718 . . . Parts 133 | . 49 36 48 . . . Haulers Intercepted 2 | . 1 . 1 . . . Recyclers Shooed . | . . . . . . . Parts Field Recycled . | . . . . . . . Retrieved Matter . | . . . . . . . Parts Self-Destructed . | . . . . . . . Prevented . | . . . . . . . Kills | -11 -10 -10 -9 -9 -9 -8 ------- Run | Scr Mat Min Mat Min Exi Min Combat Hostiles Destroyed 41 | . 14 13 14 . . . Melee 16 | . . 2 14 . . . Guns 13 | . 13 . . . . . AOE 11 | . . 11 . . . . Classes Destroyed 9 | . 7 1 1 . . . Worker 2 | . 1 1 . . . . Tunneler 8 | . . 8 . . . . Hauler 2 | . 1 . 1 . . . Recycler 2 | . 1 . 1 . . . Operator 1 | . 1 . . . . . Watcher 5 | . 2 . 3 . . . Swarmer 13 | . 9 2 2 . . . Grunt 25 | . 5 11 9 . . . Sentry 3 | . . . 3 . . . Best Kill Streak 20 | . 6 20 5 . . . Combat Bots Only 11 | . 6 11 4 . . . Max Kills in Single Turn 3 | . 1 3 1 . . . Gunslinging . | . . . . . . . Exploded 2 | . . 2 . . . . Melee 1 | . . 1 1 . . . Uniques/NPCs Destroyed . | . . . . . . . Combat | -11 -10 -10 -9 -9 -9 -8 -------- Run | Scr Mat Min Mat Min Exi Min Damage Taken 1288 | . 457 334 497 . . . Core 974 | . 388 286 300 . . . Absorbed by Shields 191 | . . . 191 . . . Redirected to Core 558 | . 224 147 187 . . . Core Remaining (%) 94 | 100 . 88 . . . . Volleys Fired 90 | . 65 23 2 . . . Largest 1 | . 1 1 1 . . . Hottest 40 | . 40 30 40 . . . Shots Fired 89 | . 65 22 2 . . . Gun 67 | . 65 . 2 . . . Cannon . | . . . . . . . Launcher 22 | . . 22 . . . . Special . | . . . . . . . Kinetic . | . . . . . . . Thermal . | . . . . . . . Explosive 22 | . . 22 . . . . Electromagnetic 67 | . 65 . 2 . . . Robot Hit Streak 19 | . 8 17 19 . . . Robot Miss Streak 3 | . 3 . . . . . Penetration Max . | . . . . . . . Secondary Targets . | . . . . . . . Shots Hit Robots 94 | . 41 19 34 . . . Core Hits 84 | . 23 41 20 . . . Critical Hits . | . . . . . . . Critical Kills . | . . . . . . . Critical Parts Destroyed . | . . . . . . . Melee Attacks 72 | . . 8 60 4 . . Impact . | . . . . . . . Slashing 72 | . . 8 60 4 . . Piercing . | . . . . . . . Sneak Attacks 2 | . . . 2 . . . Combat Hostiles . | . . . . . . . Follow-up Attacks . | . . . . . . . Damage Inflicted 3183 | . 708 1555 920 . . . Guns 631 | . 601 . 30 . . . Cannons . | . . . . . . . Explosions 1614 | . 107 1507 . . . . Melee 938 | . . 48 890 . . . Ramming . | . . . . . . . Kinetic . | . . . . . . . Thermal 107 | . 107 . . . . . Explosive 1507 | . . 1507 . . . . Electromagnetic 631 | . 601 . 30 . . . Impact . | . . . . . . . Slashing 938 | . . 48 890 . . . Piercing . | . . . . . . . Highest Corruption 2 | . 2 2 . . . . Average Corruption 2 | . 2 2 . . . . Corruption Purged . | . . . . . . . Effects 18 | . 2 16 . . . . Message Errors 7 | . 1 6 . . . . Heat Flow Errors 5 | . . 5 . . . . Energy Discharges 2 | . . 2 . . . . Data Loss (minor) 2 | . 1 1 . . . . Targeting Errors 1 | . . 1 . . . . Weapon Failures 1 | . . 1 . . . . Overload Shots . | . . . . . . . Overflow Damage 85 | . . 63 22 . . . Projectiles . | . . . . . . . Explosions 63 | . . 63 . . . . Melee 22 | . . . 22 . . . Knockbacks . | . . . . . . . Impact . | . . . . . . . Kinetic . | . . . . . . . Secondary . | . . . . . . . Self-Inflicted Damage 276 | . 104 172 . . . . Shots 9 | . 3 6 . . . . Rammed . | . . . . . . . Targets Rammed . | . . . . . . . Kicked . | . . . . . . . Crushed . | . . . . . . . Highest Temperature 261 | . 48 261 13 . . . Average Temperature 57 | . 22 100 9 . . . Received Heat Transfer 320 | . 78 84 158 . . . Siege Activations . | . . . . . . . Robots Corrupted 1 | . 1 . . . . . Combat Hostiles 1 | . 1 . . . . . Parts Fried . | . . . . . . . Impact Corruptions . | . . . . . . . Robots Melted . | . . . . . . . Combat Hostiles . | . . . . . . . Parts Melted . | . . . . . . . Heat Transferred 100 | . 100 . . . . . Parts Sabotaged . | . . . . . . . Parts Stolen . | . . . . . . . Parts Stripped . | . . . . . . . Power Chain Reactions 4 | . 4 . . . . . Missiles Intercepted . | . . . . . . . Alert | -11 -10 -10 -9 -9 -9 -8 ------- Run | Scr Mat Min Mat Min Exi Min Peak Influence 402 | . 221 265 402 156 . . Average Influence 133 | . 66 130 226 156 . . Maximum Alert Level 2 | . 1 1 2 . . . Low Security (%) 73 | 100 97 67 49 100 . 100 Level 1 25 | . 2 32 44 . . . Level 2 1 | . . . 6 . . . Level 3 . | . . . . . . . Level 4 . | . . . . . . . Level 5 . | . . . . . . . High Security . | . . . . . . . Max Security . | . . . . . . . Squads Dispatched 4 | . 2 . 2 . . . Investigation 2 | . 1 . 1 . . . Extermination . | . . . . . . . Reinforcement 2 | . 1 . 1 . . . Assault . | . . . . . . . Garrison . | . . . . . . . Intercept . | . . . . . . . Construction Impeded . | . . . . . . . Haulers Reinforced . | . . . . . . . Stealth | -11 -10 -10 -9 -9 -9 -8 --------- Run | Scr Mat Min Mat Min Exi Min Distress Signals 3 | . 1 1 1 . . . Communications Jammed . | . . . . . . . Distress Signals . | . . . . . . . Times Spotted 66 | . 22 18 26 . . . Peak Tracking Total 5 | . 4 4 5 . . . Tactical Retreats 5 | . . 2 3 . . . Traps | -11 -10 -10 -9 -9 -9 -8 ------- Run | Scr Mat Min Mat Min Exi Min Traps Triggered 3 | . 3 . . . . . Indirectly . | . . . . . . . Trap Hack Attempts . | . . . . . . . Triggered . | . . . . . . . Disarmed . | . . . . . . . Reprogrammed . | . . . . . . . Reused . | . . . . . . . Traps Extracted . | . . . . . . . Installed . | . . . . . . . Triggered . | . . . . . . . Machines | -11 -10 -10 -9 -9 -9 -8 ---------- Run | Scr Mat Min Mat Min Exi Min Machines Disabled 2 | . 2 . . . . . Max in Single Turn 1 | . 1 . . . . . Machines Sabotaged . | . . . . . . . Garrisons Compromised . | . . . . . . . Overloaded Fab Kills . | . . . . . . . Fab Network Shutdowns . | . . . . . . . Hacking | -11 -10 -10 -9 -9 -9 -8 --------- Run | Scr Mat Min Mat Min Exi Min Machines Accessed 11 | . 7 . 3 . 1 . Terminals 9 | . 6 . 3 . . . Fabricators . | . . . . . . . Repair Stations . | . . . . . . . Recycling Units 1 | . 1 . . . . . Scanalyzers . | . . . . . . . Garrison Access . | . . . . . . . Total Hacks 25 | . 16 . 8 . 1 . Successful 13 | . 9 . 3 . 1 . Failed 12 | . 7 . 5 . . . Catastrophic . | . . . . . . . Database Lockouts . | . . . . . . . Manual 21 | . 14 . 6 . 1 . Terminals 23 | . 15 . 8 . . . Fabricators . | . . . . . . . Repair Stations . | . . . . . . . Recycling Units 1 | . 1 . . . . . Scanalyzers . | . . . . . . . Garrison Access . | . . . . . . . Terminal Hacks 5 | . 3 . 1 . 1 . Robot Analysis 1 | . 1 . . . . . Branch Access Points 1 | . . . 1 . . . Alert Level 1 | . 1 . . . . . Unreport Threat 1 | . 1 . . . . . EX-Prototype ID Bank 1 | . . . . . 1 . Fabricator Hacks . | . . . . . . . Repair Station Hacks . | . . . . . . . Recycling Unit Hacks . | . . . . . . . Scanalyzer . | . . . . . . . Garrison Access Hacks . | . . . . . . . Unauthorized Hacks 22 | . 16 . 6 . . . Terminals 7 | . 5 . 2 . . . Track 2 | . 2 . . . . . Botnet 5 | . 3 . 2 . . . Fabricators . | . . . . . . . Repair Stations . | . . . . . . . Recycling Units 1 | . 1 . . . . . Tunnel 1 | . 1 . . . . . Scanalyzers . | . . . . . . . Garrison Access . | . . . . . . . Data Cores Recovered . | . . . . . . . Used . | . . . . . . . Hacking Detections 9 | . 6 . 3 . . . Full Trace Events 1 | . . . 1 . . . Feedback Events . | . . . . . . . Feedback Blocked . | . . . . . . . Robot Schematics Acquired . | . . . . . . . Robots Built . | . . . . . . . Matter . | . . . . . . . Time . | . . . . . . . Total Robot Build Rating . | . . . . . . . Part Schematics Acquired . | . . . . . . . Parts Built . | . . . . . . . Matter . | . . . . . . . Time . | . . . . . . . Total Part Build Rating . | . . . . . . . Parts Repaired . | . . . . . . . Time . | . . . . . . . Parts Recycled . | . . . . . . . Recycled Matter . | . . . . . . . Retrieved Matter . | . . . . . . . Retrieved Components . | . . . . . . . Parts Scanalyzed . | . . . . . . . Part Schematics Acquired . | . . . . . . . Parts Damaged . | . . . . . . . Bothacking | -11 -10 -10 -9 -9 -9 -8 ------------ Run | Scr Mat Min Mat Min Exi Min Used RIF Installer . | . . . . . . . Robots Hacked . | . . . . . . . Non-combat . | . . . . . . . Combat . | . . . . . . . Robot Hacks Applied . | . . . . . . . Relay Couplers Released . | . . . . . . . Robots Rewired . | . . . . . . . Allies Hacked . | . . . . . . . Hacks Repelled . | . . . . . . . Allies | -11 -10 -10 -9 -9 -9 -8 -------- Run | Scr Mat Min Mat Min Exi Min Total Allies 1 | . . 1 . . . . Largest Group 1 | . . 1 . . . . Highest-Rated Group 31 | . . 31 . . . . Highest-Rated Ally 31 | . . 31 . . . . Total Orders . | . . . . . . . Ally Attacks 7 | . . 7 . . . . Total Damage 145 | . . 145 . . . . Kills 3 | . . 3 . . . . Allies Corrupted . | . . . . . . . Allies Melted . | . . . . . . . Intel | -11 -10 -10 -9 -9 -9 -8 ------- Run | Scr Mat Min Mat Min Exi Min Robot Analysis Total 1 | . 1 . . . . . Derelict Logs Recovered 4 | . . 2 . 2 . . Drone Launches . | . . . . . . . Drone Recoveries . | . . . . . . . Exploration | -11 -10 -10 -9 -9 -9 -8 ------------- Run | Scr Mat Min Mat Min Exi Min Turns Passed 2596 | 30 735 1031 609 57 127 7 Spaces Moved 2423 | 34 644 464 735 140 385 21 Core 12 | 4 4 . 4 . . . Treads . | . . . . . . . Legs . | . . . . . . . Wheels 1300 | 30 640 464 166 . . . Hover . | . . . . . . . Flight 1111 | . . . 565 140 385 21 Fastest Speed 32 | 50 50 80 32 32 32 32 Average Speed 59 | 76 79 80 46 32 32 32 Slowest Speed 300 | 80 100 80 300 32 32 32 Overloaded Moves . | . . . . . . . Propulsion Burnouts . | . . . . . . . Robots Hopped 5 | . . . 5 . . . Cave-ins Triggered . | . . . . . . . Exploration Rate (%) 51 | 3 82 95 55 25 88 9 Regions Visited 6 Branch Regions 4 Pre-discovered Areas 3 | . 1 2 . . . . Known Exits Taken 3 | . 1 1 1 . . . Unknown Exits Taken 3 | 1 . . . 1 1 . Scrap Searched 2 | . . 2 . . . . Spaces Dug 16 | . . 11 1 4 . . Terrain Destroyed 151 | . 10 136 1 4 . . Melee 10 | . . 5 1 4 . . Projectile . | . . . . . . . AOE 141 | . 10 131 . . . . Actions | -11 -10 -10 -9 -9 -9 -8 --------- Run | Scr Mat Min Mat Min Exi Min Total 3344 | 36 796 1087 872 143 389 21 Wait 635 | . 58 558 19 . . . Move 2407 | 33 643 463 724 139 384 21 Hop 5 | . . . 5 . . . Pick Up 19 | . 5 4 7 . 3 . Fast Attach 27 | 3 9 2 13 . . . Attach 2 | . . 1 1 . . . Detach 3 | . 1 1 1 . . . Swap 3 | . 2 . 1 . . . Drop 27 | . 4 5 16 . 2 . Fire 90 | . 65 23 2 . . . Melee 72 | . . 8 60 4 . . Ram . | . . . . . . . Kick . | . . . . . . . Crush . | . . . . . . . Escape Stasis . | . . . . . . . Rewire . | . . . . . . . Trap . | . . . . . . . Miscellaneous 54 | . 9 22 23 . . . Route ------- -11/Scrapyard -10/Materials (discovered 4 exits: *Mat x3 / *Min) -10/Mines (discovered 2 exits: *Mat x2) -9/Materials (discovered 3 exits: [*Mat x2] / *Min) -9/Mines -9/Exiles -8/Mines History --------- Turn | Location | Event 3 | -11/Scrapyard | Discovered new exit (range 15) 31 | -11/Scrapyard | Entered Materials 181 | -10/Materials | Discovered new exit (range 13) 302 | -10/Materials | Build established: Mutant 432 | -10/Materials | Discovered new exit (range 8) 472 | -10/Materials | Identified exit to Mines 491 | -10/Materials | Discovered new exit (range 16) 625 | -10/Materials | Discovered new exit (range 9) 672 | -10/Materials | Reached level 2 766 | -10/Materials | Entered Mines 779 | -10/Mines | Excavation squad dispatched 779 | -10/Mines | A large section of the Mines collapsed 1029 | -10/Mines | Excavation squad dispatched 1279 | -10/Mines | Excavation squad dispatched 1338 | -10/Mines | Reached level 3 1362 | -10/Mines | Core integrity fell below 50% 1386 | -10/Mines | Destroyed 11 combat bots 1417 | -10/Mines | Discovered new exit (range 9) 1420 | -10/Mines | Received a Mining Laser from a helpful Derelict 1422 | -10/Mines | Identified exit to Materials 1438 | -10/Mines | Joined a pair of Derelicts in attacking an 0b10 outpost 1491 | -10/Mines | Discovered exit to Materials (range 16) 1555 | -10/Mines | Received a Rocket Launcher from a helpful Derelict 1669 | -10/Mines | Learned location of Zion (-7) 1797 | -10/Mines | Entered Materials 1799 | -9/Materials | Reached level 4 1800 | -9/Materials | Upgraded with Propulsion slot (x1) 1800 | -9/Materials | Upgraded with Utility slot (x1) 1893 | -9/Materials | Reached level 5 1954 | -9/Materials | Upgraded with Utility slot (x1) 2073 | -9/Materials | Discovered new exit (range 4) 2302 | -9/Materials | Reached level 6 2330 | -9/Materials | Build established: Sprinter 2339 | -9/Materials | Discovered new exit (range 16) 2367 | -9/Materials | Identified exit to Mines 2406 | -9/Materials | Entered Mines 2412 | -9/Mines | Assembled infested the area 2412 | -9/Mines | Learned 2 Materials zone layouts 2424 | -9/Mines | Learned Materials trap positions 2461 | -9/Mines | Deemed a non-threat by the Exiles lab entrance 2461 | -9/Mines | Discovered new exit (range 5) 2463 | -9/Mines | Entered Exiles 2471 | -9/Exiles | Met 8R-AWN 2477 | -9/Exiles | Met EX-HEX 2487 | -9/Exiles | Met EX-BIN 2492 | -9/Exiles | Aligned with FarCom system 2492 | -9/Exiles | Given EX-Vault access code 2499 | -9/Exiles | Opened EX-Vault 2502 | -9/Exiles | Found Deploy-a-Sentry 2503 | -9/Exiles | Found Deploy-a-Sentry 2505 | -9/Exiles | Found Deploy-a-Sentry 2512 | -9/Exiles | Warned to stay clear of 0b10 Research branches 2524 | -9/Exiles | Met EX-DEC 2543 | -9/Exiles | Visited The Gauntlet 2587 | -9/Exiles | Discovered new exit (range 14) 2590 | -9/Exiles | Left Exiles lab with Deploy-a-Sentry 2590 | -9/Exiles | Entered Mines 2592 | -8/Mines | Reached level 7 2597 | -8/Mines | Self-destructed Last Messages --------------- And if we have to leave here due to unforeseen circumstances, don't worry the FarCom system will continue to maintain contact via our distributed network. EX-DEC: Ah I see we have a visitor. One wrong move in here and I'll invert your atomic chain! EX-DEC: "Oops, I hope HEX didn't hear that..." AM-PHS: That's RA-1N3's workstation, which we keep unoccupied as a tribute. RA-1N3 was always up for doing crazy stuff, the only one brave enough to try out the Chronowheel, only to never be seen again. EXIT=FOUND LOCATION=UNKNOWN GOAL=ESCAPE Receiving FarCom transmissions... K-01 Serf collects debris. Reached level 7. K-01 Serf collects debris. Upgraded: KI Damage % (+10) Upgraded: TH Damage % (+10) Upgraded: EX Damage % (+5) Map ----- +----------------------------------------------------+ | ????????????????????????????????????????????????? | | ????????????????????????????????????????????????? | | ????????????????????????????????????????????????? | | ????????????????????????????????????????????????? | | ????????????????????????????????????????????????? | | ????????????????????????????????????????????????? | | ????????????????????????????????????????????????? | | ????????????????????????????????????????????????? | | ????????????????????????????????????????????????? | | ????????????????????????????????????????????????? | | ????????????????????????????????????????????????? | | ????????????????????????????????????????????????? | | ????????????????????????????????????????????????? | | ????????????????????????????????????#########???? | | ????????????????????????????????????# #???? | | ????????????????????????????????????# #???? | | ????????????????????????????????????# #???? | | ????????????????????????############# ? #???? | | ????????????????????????# #???? | | ????????????????????????# ########## #???? | | ????????????????????????# #????????# ?#???? | | ??????????????# ???????# #????????#########???? | | ?????????????## ###### #????????????????????? | | ?????????????# #????????????????????? | | ?????????? t #????????????????????? | | ?????????? #### @##????????????????????? | | ??????????? ????????# #????????????????????? | | ?????????????????????## #???????????????????? | | ??????????????????????### t ??????????????????? | | ????????????????????????## ?????????????????? | | ?????????????????????????? ????????????????? | | ??????????????????????????# ???????????????? | | ???????????????????????????# ??????????????? | | ????????????????????????????# ### ????????????? | | ?????????????????????????????###??? ???????????? | | ???????????????????????????????????? ???????????? | | ????????????????????????????????????????????????? | | ????????????????????????????????????????????????? | | ????????????????????????????????????????????????? | | ????????????????????????????????????????????????? | | ????????????????????????????????????????????????? | | ????????????????????????????????????????????????? | | ????????????????????????????????????????????????? | | ????????????????????????????????????????????????? | | ????????????????????????????????????????????????? | | ????????????????????????????????????????????????? | | ????????????????????????????????????????????????? | | ????????????????????????????????????????????????? | | ????????????????????????????????????????????????? | | ????????????????????????????????????????????????? | +----------------------------------------------------+ Best States ------------- Heat Dissipation 37 Energy Generation 24 Energy Capacity 260 Matter Stores 300 Matter Capacity 300 Sight Range 16 Robot Scan Range 30 Terrain Scan Density 10 Armor Coverage 600 Evasion (%) 63 Targeting Accuracy 5 Item Schematics ----------------- None Robot Schematics ------------------ None Fabricated ------------ Nothing Alien Tech Used ----------------- None Achievements -------------- None Challenges ------------ None RPGLIKE | -11 -10 -10 -9 -9 -9 -8 --------- Run | Scr Mat Min Mat Min Exi Min Levels Raised 6 | . 1 1 3 . . 1 XP Earned 12102 | 3000 2115 2267 3370 500 350 500 XP Spent 11750 | 2855 1620 1450 4225 . . 1600 Upgrades 44 | 20 6 4 9 . . 5 Propulsion Slot 1 | . . . 1 . . . Utility Slot 2 | . . . 2 . . . Core Integrity 8 | 8 . . . . . . Heat Dissipation 2 | . 2 . . . . . Energy Generation 2 | . 1 . 1 . . . Energy Storage 2 | . . . 2 . . . Mass Support 2 | . . . 2 . . . Inventory Capacity 3 | 2 . . 1 . . . Sensor Range 15 | 10 1 4 . . . . Ranged Accuracy 2 | . 2 . . . . . KI Damage % 2 | . . . . . . 2 TH Damage % 2 | . . . . . . 2 EX Damage % 1 | . . . . . . 1 Protomatter Created 302 | . 91 65 146 . . . Integrity Restored 1015 | . 147 441 427 . . . Core 874 | . 113 441 320 . . . Parts 141 | . 34 . 107 . . . Protomatter Decayed 149 | . 8 95 46 . . . Game ------ Seed CloakingDimensionalCharger Manual? 0 Play Time 00:32:40 Cumulative 168.7 hours Start 2020.04.06 @ 00:15:14 End 2020.04.06 @ 00:47:31 Sessions 1 Manual Loads 0 Difficulty Rogue Special Mode Winter2019/RPGLIKE Game No. 197 Rogue 197 Adventurer 0 Explorer 0 Win Type - Total 5 Types 4/0/1/0/0/0/0 Lore% 70 Gallery% 81 Achievement% 58 Wizard Run 0 Options --------- ASCII 0 Keyboard 1 Movement Numpad Keybinds 0 Fullscreen 1 Font 18/SmallcapsGlow Map View 76x50 Tactical HUD 1 Map Filters NONE Filters NONE Steam 1 RUN: 234e4c62-a4e2-4ec8-a3c2-76ee59608320